[Event "Early Titled Tuesday Blitz | February 8 2022"]
[White "Goltseva, Ekaterina"]
[Black "Williams, Simon K"]
[WhiteFideId "24173770"]
[BlackFideId "404454"]
[WhiteElo "2140"]
[BlackElo "2468"]
[Result "1-0"]
[Round "09"]
[TimeControl "180+1"]
[Date "2022.02.08"]
[WhiteClock "0:00:07"]
[BlackClock "0:00:11"]

1. d4 {[%clk 0:02:59]}  e6 {[%clk 0:02:56]} 2. c4 {[%clk 0:02:59]}  b6 {[%clk 0:02:55]} 3. a3 {[%clk 0:02:58]}  c5 {[%clk 0:02:55]} 4. d5 {[%clk 0:02:58]}  exd5 {[%clk 0:02:55]} 5. cxd5 {[%clk 0:02:59]}  d6 {[%clk 0:02:55]} 6. Nc3 {[%clk 0:02:59]}  Nf6 {[%clk 0:02:52]} 7. e4 {[%clk 0:02:58]}  g6 {[%clk 0:02:51]} 8. Bg5 {[%clk 0:02:57]}  Bg7 {[%clk 0:02:50]} 9. Bb5+ {[%clk 0:02:57]}  Bd7 {[%clk 0:02:49]} 10. Bd3 {[%clk 0:02:56]}  b5 {[%clk 0:02:37]} 11. Nxb5 {[%clk 0:02:35]}  Qa5+ {[%clk 0:02:33]} 12. Bd2 {[%clk 0:02:08]}  Qb6 {[%clk 0:02:28]} 13. a4 {[%clk 0:01:57]}  O-O {[%clk 0:02:19]} 14. a5 {[%clk 0:01:39]}  Qb7 {[%clk 0:01:41]} 15. Nxd6 {[%clk 0:01:29]}  Qxb2 {[%clk 0:01:38]} 16. Rb1 {[%clk 0:01:19]}  Qe5 {[%clk 0:01:16]} 17. Nc4 {[%clk 0:01:16]}  Qe7 {[%clk 0:01:15]} 18. Qe2 {[%clk 0:01:03]}  Re8 {[%clk 0:01:00]} 19. d6 {[%clk 0:00:53]}  Qe6 {[%clk 0:00:43]} 20. e5 {[%clk 0:00:47]}  Nc6 {[%clk 0:00:38]} 21. exf6 {[%clk 0:00:40]}  Qxf6 {[%clk 0:00:37]} 22. Be3 {[%clk 0:00:35]}  Nd4 {[%clk 0:00:35]} 23. Qd2 {[%clk 0:00:32]}  Bc6 {[%clk 0:00:30]} 24. Kf1 {[%clk 0:00:15]}  Rab8 {[%clk 0:00:25]} 25. Re1 {[%clk 0:00:13]}  Nf5 {[%clk 0:00:17]} 26. d7 {[%clk 0:00:06]}  Bxd7 {[%clk 0:00:16]} 27. Nf3 {[%clk 0:00:06]}  Bc6 {[%clk 0:00:15]} 28. Bxf5 {[%clk 0:00:06]}  Qxf5 {[%clk 0:00:15]} 29. Nd6 {[%clk 0:00:07]}  Qg4 {[%clk 0:00:11]} 30. Nxe8 {[%clk 0:00:07]}  Rxe8 {[%clk 0:00:10]} 31. Bxc5 {[%clk 0:00:04]}  Rc8 {[%clk 0:00:08]} 32. Be3 {[%clk 0:00:04]}  Bxf3 {[%clk 0:00:08]} 33. gxf3 {[%clk 0:00:04]}  Qxf3 {[%clk 0:00:07]} 34. Rg1 {[%clk 0:00:05]}  Be5 {[%clk 0:00:08]} 35. Rg2 {[%clk 0:00:04]}  Qh3 {[%clk 0:00:06]} 36. Kg1 {[%clk 0:00:04]}  Bf6 {[%clk 0:00:07]} 37. Qe2 {[%clk 0:00:05]}  Re8 {[%clk 0:00:08]} 38. Qg4 {[%clk 0:00:05]}  Qxg4 {[%clk 0:00:07]} 39. Rxg4 {[%clk 0:00:06]}  h5 {[%clk 0:00:07]} 40. Rb4 {[%clk 0:00:06]}  Bc3 {[%clk 0:00:07]} 41. Rbb1 {[%clk 0:00:07]}  Bxe1 {[%clk 0:00:07]} 42. Rxe1 {[%clk 0:00:07]}  a6 {[%clk 0:00:07]} 43. Rb1 {[%clk 0:00:08]}  Re5 {[%clk 0:00:08]} 44. Bb6 {[%clk 0:00:07]}  Rd5 {[%clk 0:00:07]} 45. Rc1 {[%clk 0:00:08]}  Kh7 {[%clk 0:00:08]} 46. Rc8 {[%clk 0:00:08]}  Kg7 {[%clk 0:00:08]} 47. Rc7 {[%clk 0:00:09]}  Rd1+ {[%clk 0:00:08]} 48. Kg2 {[%clk 0:00:09]}  g5 {[%clk 0:00:09]} 49. h4 {[%clk 0:00:08]}  g4 {[%clk 0:00:09]} 50. Ra7 {[%clk 0:00:04]}  Kg6 {[%clk 0:00:10]} 51. Rxa6 {[%clk 0:00:04]}  f5 {[%clk 0:00:10]} 52. Be3+ {[%clk 0:00:05]}  Kf7 {[%clk 0:00:10]} 53. Ra7+ {[%clk 0:00:05]}  Ke6 {[%clk 0:00:10]} 54. a6 {[%clk 0:00:05]}  Ke5 {[%clk 0:00:10]} 55. Re7+ {[%clk 0:00:06]}  Kd6 {[%clk 0:00:10]} 56. Rf7 {[%clk 0:00:05]}  Ke6 {[%clk 0:00:10]} 57. Rc7 {[%clk 0:00:05]}  Ra1 {[%clk 0:00:11]} 58. a7 {[%clk 0:00:05]}  Ke5 {[%clk 0:00:11]} 59. Re7+ {[%clk 0:00:05]}  Kf6 {[%clk 0:00:11]} 60. Re8 {[%clk 0:00:06]}  Kf7 {[%clk 0:00:11]} 61. a8=Q {[%clk 0:00:07]} 1-0


[Site "https://www.chess.com"]

[Event "Early Titled Tuesday Blitz | February 8 2022"]
[White "Gombocz, Ferenc Jr."]
[Black "Musovic, Armin"]
[WhiteFideId "775029"]
[BlackFideId "939935"]
[WhiteElo "1913"]
[BlackElo "2250"]
[Result "1-0"]
[Round "09"]
[TimeControl "180+1"]
[Date "2022.02.08"]
[WhiteClock "0:00:04"]
[BlackClock "0:00:07"]

1. c4 {[%clk 0:03:00]}  c6 {[%clk 0:02:59]} 2. g3 {[%clk 0:03:01]}  Nf6 {[%clk 0:03:00]} 3. Bg2 {[%clk 0:03:00]}  d5 {[%clk 0:01:44]} 4. Nf3 {[%clk 0:02:56]}  d4 {[%clk 0:01:42]} 5. O-O {[%clk 0:02:54]}  c5 {[%clk 0:01:40]} 6. e3 {[%clk 0:02:54]}  Nc6 {[%clk 0:01:40]} 7. exd4 {[%clk 0:02:54]}  Nxd4 {[%clk 0:01:41]} 8. Nxd4 {[%clk 0:02:54]}  Qxd4 {[%clk 0:01:40]} 9. d3 {[%clk 0:02:51]}  g6 {[%clk 0:01:36]} 10. Nc3 {[%clk 0:02:49]}  a6 {[%clk 0:01:34]} 11. Be3 {[%clk 0:02:48]}  Qd6 {[%clk 0:01:35]} 12. d4 {[%clk 0:02:47]}  cxd4 {[%clk 0:01:35]} 13. Qxd4 {[%clk 0:02:45]}  Qxd4 {[%clk 0:01:35]} 14. Bxd4 {[%clk 0:02:45]}  Bg7 {[%clk 0:01:35]} 15. Nd5 {[%clk 0:02:44]}  Nxd5 {[%clk 0:01:27]} 16. Bxg7 {[%clk 0:02:42]}  Rg8 {[%clk 0:01:27]} 17. Be5 {[%clk 0:02:19]}  Nb6 {[%clk 0:01:22]} 18. Rac1 {[%clk 0:02:11]}  Nd7 {[%clk 0:01:16]} 19. Bc7 {[%clk 0:02:06]}  Nc5 {[%clk 0:01:12]} 20. Rfd1 {[%clk 0:02:00]}  Bg4 {[%clk 0:01:11]} 21. Rd4 {[%clk 0:01:54]}  Ne6 {[%clk 0:01:10]} 22. Rxg4 {[%clk 0:01:51]}  Nxc7 {[%clk 0:01:10]} 23. Bxb7 {[%clk 0:01:51]}  Rb8 {[%clk 0:01:10]} 24. Bc6+ {[%clk 0:01:51]}  Kf8 {[%clk 0:01:11]} 25. b3 {[%clk 0:01:49]}  Kg7 {[%clk 0:01:10]} 26. Rd4 {[%clk 0:01:49]}  Ne6 {[%clk 0:01:10]} 27. Rd7 {[%clk 0:01:49]}  Nc5 {[%clk 0:01:08]} 28. Rxe7 {[%clk 0:01:47]}  Kf6 {[%clk 0:01:03]} 29. Ra7 {[%clk 0:01:43]}  Nd3 {[%clk 0:00:54]} 30. Rd1 {[%clk 0:01:37]}  Nb4 {[%clk 0:00:49]} 31. Bd5 {[%clk 0:01:30]}  Rgf8 {[%clk 0:00:49]} 32. a3 {[%clk 0:01:29]}  Nxd5 {[%clk 0:00:46]} 33. Rxd5 {[%clk 0:01:29]}  Rxb3 {[%clk 0:00:46]} 34. Rxa6+ {[%clk 0:01:29]}  Kg7 {[%clk 0:00:46]} 35. Rd7 {[%clk 0:01:27]}  h5 {[%clk 0:00:47]} 36. Raa7 {[%clk 0:01:26]}  h4 {[%clk 0:00:47]} 37. Kg2 {[%clk 0:01:26]}  Rc3 {[%clk 0:00:46]} 38. Rdc7 {[%clk 0:01:25]}  g5 {[%clk 0:00:46]} 39. gxh4 {[%clk 0:01:17]}  gxh4 {[%clk 0:00:46]} 40. h3 {[%clk 0:01:17]}  Kf6 {[%clk 0:00:46]} 41. Ra6+ {[%clk 0:01:06]}  Ke5 {[%clk 0:00:45]} 42. Re7+ {[%clk 0:01:04]}  Kd4 {[%clk 0:00:44]} 43. Rd7+ {[%clk 0:00:58]}  Ke5 {[%clk 0:00:41]} 44. Ra5+ {[%clk 0:00:52]}  Ke6 {[%clk 0:00:41]} 45. Rd4 {[%clk 0:00:51]}  Rg8+ {[%clk 0:00:41]} 46. Rg4 {[%clk 0:00:44]}  Rxg4+ {[%clk 0:00:36]} 47. hxg4 {[%clk 0:00:44]}  Rxc4 {[%clk 0:00:34]} 48. Kh3 {[%clk 0:00:43]}  Rf4 {[%clk 0:00:34]} 49. Rf5 {[%clk 0:00:39]}  Ra4 {[%clk 0:00:28]} 50. Rf3 {[%clk 0:00:38]}  f5 {[%clk 0:00:28]} 51. Rxf5 {[%clk 0:00:34]}  Rxa3+ {[%clk 0:00:28]} 52. Kxh4 {[%clk 0:00:34]}  Ra1 {[%clk 0:00:28]} 53. Rf3 {[%clk 0:00:31]}  Ke5 {[%clk 0:00:26]} 54. Kg5 {[%clk 0:00:30]}  Ra8 {[%clk 0:00:26]} 55. Rf7 {[%clk 0:00:25]}  Rg8+ {[%clk 0:00:24]} 56. Kh5 {[%clk 0:00:25]}  Ke6 {[%clk 0:00:24]} 57. Rh7 {[%clk 0:00:22]}  Rf8 {[%clk 0:00:24]} 58. g5 {[%clk 0:00:17]}  Rxf2 {[%clk 0:00:23]} 59. g6 {[%clk 0:00:17]}  Rh2+ {[%clk 0:00:23]} 60. Kg5 {[%clk 0:00:16]}  Rg2+ {[%clk 0:00:21]} 61. Kh6 {[%clk 0:00:16]}  Rh2+ {[%clk 0:00:21]} 62. Kg7 {[%clk 0:00:16]}  Ra2 {[%clk 0:00:22]} 63. Rh1 {[%clk 0:00:16]}  Ra8 {[%clk 0:00:19]} 64. Re1+ {[%clk 0:00:15]}  Kf5 {[%clk 0:00:19]} 65. Re7 {[%clk 0:00:11]}  Rb8 {[%clk 0:00:18]} 66. Kf7 {[%clk 0:00:11]}  Rb6 {[%clk 0:00:17]} 67. g7 {[%clk 0:00:11]}  Rf6+ {[%clk 0:00:18]} 68. Kg8 {[%clk 0:00:10]}  Kg6 {[%clk 0:00:17]} 69. Kh8 {[%clk 0:00:08]}  Kf5 {[%clk 0:00:11]} 70. g8=Q {[%clk 0:00:07]}  Rh6+ {[%clk 0:00:11]} 71. Rh7 {[%clk 0:00:06]}  Rg6 {[%clk 0:00:10]} 72. Rh5+ {[%clk 0:00:05]}  Kf6 {[%clk 0:00:09]} 73. Qf8+ {[%clk 0:00:05]}  Ke6 {[%clk 0:00:08]} 74. Qe8+ {[%clk 0:00:05]}  Kf6 {[%clk 0:00:08]} 75. Qc6+ {[%clk 0:00:05]}  Ke7 {[%clk 0:00:07]} 76. Rh7+ {[%clk 0:00:05]}  Kf8 {[%clk 0:00:07]} 77. Qc8# {[%clk 0:00:04]} 1-0


[Site "https://www.chess.com"]

[Event "Early Titled Tuesday Blitz | February 8 2022"]
[White "Grandelius, Nils"]
[Black "Martinez Alcantara, Jose Eduardo"]
[WhiteFideId "1710400"]
[BlackFideId "3805662"]
[WhiteElo "2617"]
[BlackElo "2690"]
[Result "1-0"]
[Round "09"]
[TimeControl "180+1"]
[Date "2022.02.08"]
[WhiteClock "0:00:17"]
[BlackClock "0:00:08"]

1. d4 {[%clk 0:03:00]}  Nf6 {[%clk 0:02:56]} 2. Nf3 {[%clk 0:03:01]}  e6 {[%clk 0:02:56]} 3. c4 {[%clk 0:03:01]}  Bb4+ {[%clk 0:02:56]} 4. Bd2 {[%clk 0:02:59]}  Qe7 {[%clk 0:02:56]} 5. g3 {[%clk 0:02:58]}  Bxd2+ {[%clk 0:02:56]} 6. Qxd2 {[%clk 0:02:55]}  Nc6 {[%clk 0:02:56]} 7. Bg2 {[%clk 0:02:54]}  d5 {[%clk 0:02:55]} 8. O-O {[%clk 0:02:48]}  O-O {[%clk 0:02:54]} 9. Na3 {[%clk 0:02:42]}  Rd8 {[%clk 0:02:42]} 10. Rac1 {[%clk 0:02:40]}  Nb4 {[%clk 0:02:16]} 11. b3 {[%clk 0:02:32]}  a5 {[%clk 0:02:06]} 12. Qb2 {[%clk 0:02:28]}  b6 {[%clk 0:01:56]} 13. cxd5 {[%clk 0:02:14]}  exd5 {[%clk 0:01:54]} 14. Ne5 {[%clk 0:02:12]}  Bb7 {[%clk 0:01:53]} 15. Rfd1 {[%clk 0:02:09]}  c5 {[%clk 0:01:50]} 16. e3 {[%clk 0:02:00]}  h6 {[%clk 0:01:45]} 17. Nb5 {[%clk 0:02:00]}  Ba6 {[%clk 0:01:35]} 18. Nc3 {[%clk 0:01:56]}  Rac8 {[%clk 0:01:31]} 19. Na4 {[%clk 0:01:41]}  cxd4 {[%clk 0:01:21]} 20. exd4 {[%clk 0:01:31]}  Bb5 {[%clk 0:01:09]} 21. a3 {[%clk 0:01:02]}  Na6 {[%clk 0:00:51]} 22. Rxc8 {[%clk 0:00:56]}  Rxc8 {[%clk 0:00:51]} 23. Nxb6 {[%clk 0:00:57]}  Rd8 {[%clk 0:00:50]} 24. Qc3 {[%clk 0:00:50]}  Qxa3 {[%clk 0:00:42]} 25. Ra1 {[%clk 0:00:43]}  Qb4 {[%clk 0:00:42]} 26. Qxb4 {[%clk 0:00:41]}  axb4 {[%clk 0:00:43]} 27. Ra5 {[%clk 0:00:34]}  Nc7 {[%clk 0:00:43]} 28. Ra7 {[%clk 0:00:31]}  Ne6 {[%clk 0:00:42]} 29. Nxf7 {[%clk 0:00:30]}  Rf8 {[%clk 0:00:28]} 30. Nd6 {[%clk 0:00:23]}  Bc6 {[%clk 0:00:29]} 31. Nf5 {[%clk 0:00:21]}  Kh7 {[%clk 0:00:29]} 32. Re7 {[%clk 0:00:19]}  Ng5 {[%clk 0:00:13]} 33. Rxg7+ {[%clk 0:00:19]}  Kh8 {[%clk 0:00:13]} 34. Rc7 {[%clk 0:00:20]}  Bb5 {[%clk 0:00:13]} 35. h4 {[%clk 0:00:18]}  Nge4 {[%clk 0:00:12]} 36. Nxh6 {[%clk 0:00:19]}  Nxf2 {[%clk 0:00:10]} 37. Nf7+ {[%clk 0:00:18]}  Kg8 {[%clk 0:00:09]} 38. Kxf2 {[%clk 0:00:19]}  Rxf7 {[%clk 0:00:07]} 39. Rxf7 {[%clk 0:00:20]}  Kxf7 {[%clk 0:00:08]} 40. Nxd5 {[%clk 0:00:20]}  Ng4+ {[%clk 0:00:07]} 41. Ke1 {[%clk 0:00:19]}  Nh6 {[%clk 0:00:08]} 42. Nxb4 {[%clk 0:00:19]}  Nf5 {[%clk 0:00:09]} 43. Kf2 {[%clk 0:00:19]}  Nxd4 {[%clk 0:00:09]} 44. Bd5+ {[%clk 0:00:19]}  Kf6 {[%clk 0:00:10]} 45. Bc4 {[%clk 0:00:19]}  Bd7 {[%clk 0:00:10]} 46. Nd5+ {[%clk 0:00:19]}  Ke5 {[%clk 0:00:10]} 47. Ne3 {[%clk 0:00:20]}  Ke4 {[%clk 0:00:11]} 48. g4 {[%clk 0:00:18]}  Kf4 {[%clk 0:00:10]} 49. g5 {[%clk 0:00:18]}  Be8 {[%clk 0:00:09]} 50. b4 {[%clk 0:00:18]}  Nc6 {[%clk 0:00:08]} 51. b5 {[%clk 0:00:17]}  Na5 {[%clk 0:00:08]} 52. b6 {[%clk 0:00:17]}  Nb7 {[%clk 0:00:09]} 53. Bd5 {[%clk 0:00:17]}  Nc5 {[%clk 0:00:09]} 54. b7 {[%clk 0:00:18]}  Na6 {[%clk 0:00:10]} 55. Bf3 {[%clk 0:00:17]}  Ke5 {[%clk 0:00:09]} 56. Kg3 {[%clk 0:00:16]}  Nb8 {[%clk 0:00:08]} 57. h5 {[%clk 0:00:17]}  Bd7 {[%clk 0:00:08]} 58. h6 {[%clk 0:00:17]}  Be8 {[%clk 0:00:08]} 59. h7 {[%clk 0:00:17]} 1-0


[Site "https://www.chess.com"]

[Event "Early Titled Tuesday Blitz | February 8 2022"]
[White "Hamley, Ryan"]
[Black "Haddouche, Mohamed"]
[WhiteFideId "30959497"]
[BlackFideId "7900660"]
[WhiteElo "2477"]
[BlackElo "2443"]
[Result "0-1"]
[Round "09"]
[TimeControl "180+1"]
[Date "2022.02.08"]
[WhiteClock "0:00:02"]
[BlackClock "0:00:08"]

1. d4 {[%clk 0:02:34]}  Nf6 {[%clk 0:02:58]} 2. c4 {[%clk 0:01:59]}  g6 {[%clk 0:02:56]} 3. Nc3 {[%clk 0:01:58]}  Bg7 {[%clk 0:02:53]} 4. e4 {[%clk 0:01:58]}  d6 {[%clk 0:02:52]} 5. h3 {[%clk 0:01:57]}  O-O {[%clk 0:02:52]} 6. Be3 {[%clk 0:01:58]}  c6 {[%clk 0:02:48]} 7. g4 {[%clk 0:01:56]}  a6 {[%clk 0:02:42]} 8. a4 {[%clk 0:01:53]}  a5 {[%clk 0:02:41]} 9. Nge2 {[%clk 0:01:52]}  Na6 {[%clk 0:02:36]} 10. Ng3 {[%clk 0:01:52]}  e5 {[%clk 0:02:34]} 11. d5 {[%clk 0:01:49]}  Nc5 {[%clk 0:02:25]} 12. Be2 {[%clk 0:01:47]}  Qb6 {[%clk 0:02:17]} 13. Rb1 {[%clk 0:01:28]}  Bd7 {[%clk 0:01:51]} 14. dxc6 {[%clk 0:01:23]}  Bxc6 {[%clk 0:01:27]} 15. Qxd6 {[%clk 0:01:21]}  Nfd7 {[%clk 0:01:26]} 16. Nd5 {[%clk 0:01:10]}  Qa7 {[%clk 0:01:25]} 17. O-O {[%clk 0:01:05]}  Rfd8 {[%clk 0:01:16]} 18. Rfd1 {[%clk 0:00:55]}  Bf8 {[%clk 0:01:09]} 19. Bxc5 {[%clk 0:00:20]}  Qxc5 {[%clk 0:00:47]} 20. Qxc5 {[%clk 0:00:17]}  Nxc5 {[%clk 0:00:47]} 21. b3 {[%clk 0:00:16]}  Ne6 {[%clk 0:00:47]} 22. Bf1 {[%clk 0:00:13]}  Bc5 {[%clk 0:00:40]} 23. Ne2 {[%clk 0:00:12]}  Kg7 {[%clk 0:00:40]} 24. Bg2 {[%clk 0:00:07]}  Rh8 {[%clk 0:00:39]} 25. h4 {[%clk 0:00:07]}  h5 {[%clk 0:00:38]} 26. g5 {[%clk 0:00:07]}  Rhd8 {[%clk 0:00:35]} 27. Nf6 {[%clk 0:00:07]}  Be7 {[%clk 0:00:32]} 28. Nd5 {[%clk 0:00:07]}  Bf8 {[%clk 0:00:31]} 29. Kf1 {[%clk 0:00:07]}  Nc5 {[%clk 0:00:28]} 30. f3 {[%clk 0:00:04]}  Ne6 {[%clk 0:00:27]} 31. Bh3 {[%clk 0:00:04]}  Bc5 {[%clk 0:00:24]} 32. Bxe6 {[%clk 0:00:03]}  fxe6 {[%clk 0:00:24]} 33. Nc7 {[%clk 0:00:04]}  Kf7 {[%clk 0:00:15]} 34. Nxa8 {[%clk 0:00:04]}  Rxa8 {[%clk 0:00:15]} 35. Kg2 {[%clk 0:00:03]}  Ke7 {[%clk 0:00:15]} 36. Rd3 {[%clk 0:00:03]}  Rf8 {[%clk 0:00:15]} 37. Rbd1 {[%clk 0:00:04]}  b6 {[%clk 0:00:13]} 38. Nc3 {[%clk 0:00:04]}  Rc8 {[%clk 0:00:12]} 39. Nb5 {[%clk 0:00:04]}  Rf8 {[%clk 0:00:12]} 40. Kf1 {[%clk 0:00:04]}  Rf7 {[%clk 0:00:10]} 41. Ke2 {[%clk 0:00:04]}  Rf4 {[%clk 0:00:09]} 42. Rd8 {[%clk 0:00:04]}  Rxh4 {[%clk 0:00:10]} 43. Rh8 {[%clk 0:00:04]}  Rh2+ {[%clk 0:00:10]} 44. Kf1 {[%clk 0:00:04]}  Rh1+ {[%clk 0:00:08]} 45. Ke2 {[%clk 0:00:04]}  Rh3 {[%clk 0:00:09]} 46. Rh7+ {[%clk 0:00:04]}  Ke8 {[%clk 0:00:08]} 47. Nd6+ {[%clk 0:00:04]}  Kf8 {[%clk 0:00:08]} 48. Nc8 {[%clk 0:00:03]}  Rh2+ {[%clk 0:00:08]} 49. Kf1 {[%clk 0:00:02]}  Bd4 {[%clk 0:00:08]} 0-1


[Site "https://www.chess.com"]

[Event "Early Titled Tuesday Blitz | February 8 2022"]
[White "Dronavalli, Harika"]
[Black "Nesterov, Arseniy"]
[WhiteFideId "5015197"]
[BlackFideId "24198455"]
[WhiteElo "2382"]
[BlackElo "2489"]
[Result "1/2-1/2"]
[Round "09"]
[TimeControl "180+1"]
[Date "2022.02.08"]
[WhiteClock "0:00:28"]
[BlackClock "0:00:08"]

1. d4 {[%clk 0:03:00]}  d5 {[%clk 0:02:59]} 2. c4 {[%clk 0:03:00]}  e6 {[%clk 0:02:59]} 3. Nc3 {[%clk 0:03:00]}  Nf6 {[%clk 0:02:57]} 4. Bg5 {[%clk 0:02:54]}  Be7 {[%clk 0:02:51]} 5. e3 {[%clk 0:02:53]}  O-O {[%clk 0:02:48]} 6. Qc2 {[%clk 0:02:51]}  Nbd7 {[%clk 0:02:45]} 7. Rd1 {[%clk 0:02:47]}  h6 {[%clk 0:02:42]} 8. Bh4 {[%clk 0:02:47]}  a6 {[%clk 0:02:38]} 9. a3 {[%clk 0:02:41]}  dxc4 {[%clk 0:02:17]} 10. Bxc4 {[%clk 0:02:41]}  b5 {[%clk 0:02:18]} 11. Be2 {[%clk 0:02:38]}  Bb7 {[%clk 0:02:17]} 12. Bf3 {[%clk 0:02:38]}  Qc8 {[%clk 0:02:12]} 13. Ne4 {[%clk 0:02:06]}  Nxe4 {[%clk 0:01:24]} 14. Bxe7 {[%clk 0:02:05]}  Re8 {[%clk 0:01:24]} 15. Bh4 {[%clk 0:02:00]}  Nd6 {[%clk 0:01:12]} 16. Bg3 {[%clk 0:01:58]}  e5 {[%clk 0:00:56]} 17. dxe5 {[%clk 0:01:57]}  Nxe5 {[%clk 0:00:55]} 18. Bxe5 {[%clk 0:01:57]}  Rxe5 {[%clk 0:00:55]} 19. Bxb7 {[%clk 0:01:56]}  Qxb7 {[%clk 0:00:55]} 20. Nf3 {[%clk 0:01:56]}  Rd5 {[%clk 0:00:34]} 21. O-O {[%clk 0:01:52]}  c5 {[%clk 0:00:20]} 22. Rxd5 {[%clk 0:01:50]}  Qxd5 {[%clk 0:00:21]} 23. Rd1 {[%clk 0:01:50]}  Qc4 {[%clk 0:00:21]} 24. Qd2 {[%clk 0:01:43]}  Ne4 {[%clk 0:00:21]} 25. Qd5 {[%clk 0:01:39]}  Qxd5 {[%clk 0:00:18]} 26. Rxd5 {[%clk 0:01:40]}  c4 {[%clk 0:00:19]} 27. Nd2 {[%clk 0:01:35]}  Nxd2 {[%clk 0:00:12]} 28. Rxd2 {[%clk 0:01:35]}  Rc8 {[%clk 0:00:13]} 29. g3 {[%clk 0:01:17]}  c3 {[%clk 0:00:08]} 30. bxc3 {[%clk 0:01:16]}  Rxc3 {[%clk 0:00:07]} 31. a4 {[%clk 0:01:17]}  bxa4 {[%clk 0:00:02]} 32. Rd6 {[%clk 0:01:17]}  a3 {[%clk 0:00:03]} 33. Rxa6 {[%clk 0:01:15]}  g6 {[%clk 0:00:03]} 34. Kf1 {[%clk 0:01:12]}  Kg7 {[%clk 0:00:04]} 35. h4 {[%clk 0:01:11]}  h5 {[%clk 0:00:04]} 36. Ke2 {[%clk 0:01:10]}  Rc2+ {[%clk 0:00:04]} 37. Kf3 {[%clk 0:01:09]}  a2 {[%clk 0:00:05]} 38. Kg2 {[%clk 0:01:05]}  f5 {[%clk 0:00:04]} 39. Kf3 {[%clk 0:01:04]}  Kf7 {[%clk 0:00:05]} 40. Kg2 {[%clk 0:01:02]}  Ke7 {[%clk 0:00:05]} 41. Kf3 {[%clk 0:01:02]}  Kd7 {[%clk 0:00:05]} 42. Kf4 {[%clk 0:01:03]}  Rxf2+ {[%clk 0:00:05]} 43. Kg5 {[%clk 0:01:02]}  Rg2 {[%clk 0:00:03]} 44. Kxg6 {[%clk 0:01:02]}  Rxg3+ {[%clk 0:00:04]} 45. Kxf5 {[%clk 0:00:59]}  Rg2 {[%clk 0:00:04]} 46. e4 {[%clk 0:00:57]}  Rf2+ {[%clk 0:00:03]} 47. Kg5 {[%clk 0:00:57]}  Re2 {[%clk 0:00:02]} 48. Kxh5 {[%clk 0:00:56]}  Rxe4 {[%clk 0:00:02]} 49. Rxa2 {[%clk 0:00:53]}  Ke7 {[%clk 0:00:02]} 50. Rf2 {[%clk 0:00:52]}  Re6 {[%clk 0:00:02]} 51. Kg5 {[%clk 0:00:53]}  Re5+ {[%clk 0:00:02]} 52. Kg6 {[%clk 0:00:52]}  Re6+ {[%clk 0:00:03]} 53. Kg7 {[%clk 0:00:52]}  Re4 {[%clk 0:00:04]} 54. h5 {[%clk 0:00:49]}  Rg4+ {[%clk 0:00:04]} 55. Kh7 {[%clk 0:00:49]}  Rg5 {[%clk 0:00:04]} 56. Kh6 {[%clk 0:00:48]}  Rg1 {[%clk 0:00:05]} 57. Rf3 {[%clk 0:00:47]}  Ke6 {[%clk 0:00:05]} 58. Kh7 {[%clk 0:00:47]}  Ke7 {[%clk 0:00:05]} 59. h6 {[%clk 0:00:48]}  Ke8 {[%clk 0:00:06]} 60. Rf4 {[%clk 0:00:48]}  Ke7 {[%clk 0:00:06]} 61. Kh8 {[%clk 0:00:47]}  Ke8 {[%clk 0:00:06]} 62. Rf2 {[%clk 0:00:46]}  Ke7 {[%clk 0:00:07]} 63. h7 {[%clk 0:00:45]}  Ke8 {[%clk 0:00:07]} 64. Ra2 {[%clk 0:00:45]}  Kf7 {[%clk 0:00:07]} 65. Ra7+ {[%clk 0:00:37]}  Kf8 {[%clk 0:00:07]} 66. Ra8+ {[%clk 0:00:37]}  Kf7 {[%clk 0:00:08]} 67. Rg8 {[%clk 0:00:36]}  Rf1 {[%clk 0:00:07]} 68. Rg7+ {[%clk 0:00:34]}  Kf8 {[%clk 0:00:07]} 69. Rg8+ {[%clk 0:00:26]}  Kf7 {[%clk 0:00:07]} 70. Rg7+ {[%clk 0:00:27]}  Kf8 {[%clk 0:00:07]} 71. Rg8+ {[%clk 0:00:28]}  Kf7 {[%clk 0:00:08]} 1/2-1/2


[Site "https://www.chess.com"]

[Event "Early Titled Tuesday Blitz | February 8 2022"]
[White "Harshavardhan G B"]
[Black "Srihari L R"]
[WhiteFideId "25059009"]
[BlackFideId "46617116"]
[WhiteElo "1831"]
[BlackElo "2121"]
[Result "0-1"]
[Round "09"]
[TimeControl "180+1"]
[Date "2022.02.08"]
[WhiteClock "0:00:34"]
[BlackClock "0:00:18"]

1. e4 {[%clk 0:02:54]}  c5 {[%clk 0:02:29]} 2. Nf3 {[%clk 0:02:51]}  e6 {[%clk 0:02:29]} 3. d4 {[%clk 0:02:49]}  cxd4 {[%clk 0:02:29]} 4. Nxd4 {[%clk 0:02:50]}  Nc6 {[%clk 0:02:29]} 5. Nc3 {[%clk 0:02:49]}  Qc7 {[%clk 0:02:28]} 6. Be3 {[%clk 0:02:47]}  a6 {[%clk 0:02:28]} 7. Qd2 {[%clk 0:02:34]}  Nf6 {[%clk 0:02:26]} 8. O-O-O {[%clk 0:02:34]}  Bb4 {[%clk 0:02:21]} 9. f3 {[%clk 0:02:33]}  d5 {[%clk 0:02:20]} 10. a3 {[%clk 0:02:32]}  Ba5 {[%clk 0:02:07]} 11. Nb3 {[%clk 0:02:24]}  Bxc3 {[%clk 0:02:01]} 12. Qxc3 {[%clk 0:02:25]}  O-O {[%clk 0:02:01]} 13. Bg5 {[%clk 0:02:21]}  dxe4 {[%clk 0:01:57]} 14. Bxf6 {[%clk 0:02:19]}  Qf4+ {[%clk 0:01:57]} 15. Kb1 {[%clk 0:02:18]}  Qxf6 {[%clk 0:01:56]} 16. Qxf6 {[%clk 0:02:18]}  gxf6 {[%clk 0:01:56]} 17. fxe4 {[%clk 0:02:19]}  Rd8 {[%clk 0:01:53]} 18. Be2 {[%clk 0:02:10]}  Rxd1+ {[%clk 0:01:48]} 19. Rxd1 {[%clk 0:02:11]}  Kf8 {[%clk 0:01:49]} 20. a4 {[%clk 0:02:01]}  Ke7 {[%clk 0:01:45]} 21. a5 {[%clk 0:02:00]}  Rb8 {[%clk 0:01:43]} 22. c3 {[%clk 0:01:45]}  e5 {[%clk 0:01:31]} 23. Bc4 {[%clk 0:01:44]}  f5 {[%clk 0:01:29]} 24. Rf1 {[%clk 0:01:36]}  f4 {[%clk 0:00:55]} 25. g3 {[%clk 0:01:35]}  Bh3 {[%clk 0:00:55]} 26. Rf2 {[%clk 0:01:34]}  Rg8 {[%clk 0:00:46]} 27. gxf4 {[%clk 0:01:32]}  Rg2 {[%clk 0:00:38]} 28. Rf3 {[%clk 0:01:16]}  Bg4 {[%clk 0:00:38]} 29. Rf1 {[%clk 0:01:09]}  Rxh2 {[%clk 0:00:32]} 30. Nc5 {[%clk 0:01:05]}  Nxa5 {[%clk 0:00:28]} 31. Bd5 {[%clk 0:01:05]}  Be2 {[%clk 0:00:28]} 32. Rg1 {[%clk 0:01:00]}  exf4 {[%clk 0:00:28]} 33. Rg7 {[%clk 0:01:00]}  Bh5 {[%clk 0:00:27]} 34. e5 {[%clk 0:00:55]}  Bg6+ {[%clk 0:00:22]} 35. Ka2 {[%clk 0:00:53]}  Kf8 {[%clk 0:00:22]} 36. Rxg6 {[%clk 0:00:30]}  hxg6 {[%clk 0:00:22]} 37. Ka3 {[%clk 0:00:29]}  b5 {[%clk 0:00:20]} 38. Nxa6 {[%clk 0:00:28]}  Nc4+ {[%clk 0:00:20]} 39. Kb4 {[%clk 0:00:28]}  Rxb2+ {[%clk 0:00:20]} 40. Kc5 {[%clk 0:00:29]}  Nxe5 {[%clk 0:00:20]} 41. Nb4 {[%clk 0:00:28]}  f3 {[%clk 0:00:19]} 42. Kxb5 {[%clk 0:00:29]}  f2 {[%clk 0:00:19]} 43. Bg2 {[%clk 0:00:29]}  Ng4 {[%clk 0:00:19]} 44. Kc5 {[%clk 0:00:27]}  Ne3 {[%clk 0:00:19]} 45. Bh3 {[%clk 0:00:27]}  g5 {[%clk 0:00:18]} 46. Kd4 {[%clk 0:00:27]}  g4 {[%clk 0:00:17]} 47. Nd3 {[%clk 0:00:27]}  gxh3 {[%clk 0:00:16]} 48. Nxf2 {[%clk 0:00:27]}  Rxf2 {[%clk 0:00:16]} 49. Kxe3 {[%clk 0:00:28]}  Rf6 {[%clk 0:00:17]} 50. c4 {[%clk 0:00:28]}  h2 {[%clk 0:00:17]} 51. c5 {[%clk 0:00:29]}  h1=Q {[%clk 0:00:18]} 52. c6 {[%clk 0:00:30]}  Qe1+ {[%clk 0:00:17]} 53. Kd4 {[%clk 0:00:30]}  Rxc6 {[%clk 0:00:17]} 54. Kd5 {[%clk 0:00:31]}  Qe6+ {[%clk 0:00:16]} 55. Kd4 {[%clk 0:00:32]}  Rc4+ {[%clk 0:00:17]} 56. Kd3 {[%clk 0:00:33]}  Qe4+ {[%clk 0:00:17]} 57. Kd2 {[%clk 0:00:34]}  Rc2+ {[%clk 0:00:18]} 58. Kd1 {[%clk 0:00:34]}  Qe2# {[%clk 0:00:18]} 0-1


[Site "https://www.chess.com"]